bitfinex/quotes_BTCUSD_20210101
["timestamp","ask_amount","ask_price","bid_price","bid_amount"]
[1609506573789,1.17350744,29365.0,29364.0,1.193588]
[1609506575191,1.0,29365.0,29364.0,1.193588]
[1609506575693,1.16924868,29365.0,29364.0,1.193588]
[1609506576113,1.0,29365.0,29364.0,3.143588]
[1609506576611,1.0,29365.0,29364.0,1.193588]
[1609506577011,1.0,29365.0,29364.0,2.193588]
[1609506577409,1.0,29365.0,29364.0,1.193588]
[1609506581008,1.0,29365.0,29364.0,2.243588]
[1609506581205,1.0,29365.0,29364.0,1.193588]
[1609506581811,0.995,29365.0,29364.0,1.193588]
[1609506583118,0.995,29365.0,29364.0,1.038588]
[1609506583820,1.16528396,29365.0,29364.0,1.038588]
[1609506584724,0.995,29365.0,29364.0,1.038588]
[1609506585319,1.16558763,29365.0,29364.0,1.038588]
[1609506586248,2.12843935,29365.0,29364.0,1.038588]
[1609506586556,2.97854823,29365.0,29364.0,0.6802]
[1609506586753,3.10259498,29365.0,29364.0,0.6802]
[1609506586948,4.15259498,29365.0,29364.0,0.6802]
[1609506587146,4.67259498,29365.0,29364.0,0.6802]
[1609506587351,4.54854823,29365.0,29364.0,0.6802]
[1609506587755,4.58201635,29365.0,29364.0,0.6802]
[1609506587957,6.84921387,29365.0,29364.0,0.6802]
[1609506588164,6.72515768,29365.0,29351.0,0.8506]
[1609506588463,0.363418,29360.0,29350.0,0.01638]
[1609506588754,0.88276574,29357.0,29351.0,0.363418]
[1609506588959,0.09789393,29355.0,29353.0,0.5105]
[1609506589158,0.25571088,29355.0,29353.0,0.5105]
[1609506589451,0.16402,29355.0,29353.0,0.5105]
[1609506589649,0.61912888,29355.0,29353.0,0.5105]
[1609506589849,0.15,29354.0,29353.0,0.5105]
[1609506590552,0.363418,29354.0,29353.0,0.5105]
[1609506591673,0.363418,29354.0,29353.0,0.52129795]
[1609506592167,0.53404485,29354.0,29353.0,0.52129795]
[1609506592367,1.53404485,29354.0,29353.0,0.52129795]
[1609506592668,1.79904485,29354.0,29353.0,0.52129795]
[1609506593074,1.628418,29354.0,29353.0,0.52129795]
[1609506593476,1.265,29354.0,29353.0,0.52129795]
[1609506593677,1.265,29354.0,29353.0,0.88471595]
[1609506593881,1.265,29354.0,29353.0,1.63471595]
[1609506594074,1.0,29354.0,29353.0,0.88471595]
[1609506594275,1.00620083,29354.0,29353.0,0.88471595]
[1609506595177,1.0,29354.0,29353.0,0.88471595]
[1609506595841,0.995,29354.0,29353.0,0.88471595]
[1609506596248,0.0061999,29355.0,29353.0,1.14471595]
[1609506596455,0.0061999,29355.0,29354.0,5.62172712]
[1609506596653,0.00619791,29357.0,29355.0,4.5]
[1609506596857,0.00619791,29357.0,29356.0,6.61692712]
[1609506597057,0.98837283,29366.0,29356.0,6.61692712]
[1609506597650,0.98837283,29366.0,29356.0,1.558618]
[1609506597849,0.17032404,29365.0,29356.0,0.873618]
[1609506598253,0.17032404,29365.0,29356.0,0.98192712]
[1609506598446,0.17032404,29365.0,29357.0,0.48]
[1609506598652,0.17032404,29365.0,29358.0,0.363418]
[1609506599652,0.17060407,29366.0,29358.0,0.363418]
[1609506599852,0.17060525,29364.0,29358.0,0.363418]
[1609506600156,0.17061808,29366.0,29362.0,0.363418]
[1609506601185,0.17061808,29366.0,29365.0,5.513418]
[1609506601387,0.12782216,29367.0,29366.0,5.0]
[1609506601590,0.0008,29371.0,29366.0,5.363418]
[1609506601790,0.0008,29371.0,29367.0,6.35330912]
[1609506601985,0.0008,29371.0,29370.0,3.424798]
[1609506602496,0.2155,29372.0,29370.0,3.424798]
[1609506602788,0.2155,29372.0,29371.0,0.363418]
[1609506603184,0.2155,29372.0,29371.0,0.553418]
[1609506606900,0.2155,29372.0,29371.0,0.363418]
[1609506608304,0.0008,29374.0,29371.0,0.363418]
[1609506608508,0.0008,29374.0,29372.0,0.363418]
[1609506608805,0.0008,29374.0,29372.0,1.163418]
[1609506609006,0.0008,29374.0,29372.0,1.333418]
[1609506609702,0.0008,29374.0,29372.0,2.933418]
[1609506611186,0.0006,29373.0,29372.0,2.933418]
[1609506611587,0.0008,29374.0,29373.0,5.15]
[1609506611792,0.0006,29375.0,29374.0,5.15]
[1609506611993,0.0006,29375.0,29374.0,6.198418]
[1609506612402,0.0008,29380.0,29375.0,5.25830912]
[1609506612704,0.0008,29380.0,29378.0,2.063418]
[1609506612997,0.00077626,29385.0,29378.0,2.063418]
[1609506613198,0.00077626,29385.0,29379.0,5.1]
[1609506613396,0.00077626,29385.0,29380.0,1.048418]
[1609506614591,0.00077626,29385.0,29380.0,0.363418]
[1609506615096,0.00077626,29385.0,29383.0,0.363418]
[1609506615737,0.00097626,29385.0,29383.0,0.363418]
[1609506615935,0.00097626,29385.0,29382.0,0.68807]
[1609506617953,0.0002,29384.0,29383.0,0.363418]
[1609506618151,0.0002,29384.0,29382.0,0.68807]
[1609506618350,1.32626972,29384.0,29382.0,0.68807]
[1609506618654,0.23,29383.0,29382.0,0.68807]
[1609506618956,7.363418,29383.0,29382.0,0.68807]
[1609506619148,7.0,29383.0,29382.0,0.68807]
[1609506619576,0.0002,29384.0,29382.0,0.68807]
[1609506619776,0.00097626,29385.0,29382.0,0.68807]
[1609506619976,0.96382798,29385.0,29382.0,0.68807]
[1609506620181,1.58126972,29384.0,29382.0,0.5099]
[1609506620386,4.5687116,29383.0,29382.0,0.5099]
[1609506620682,15.60217972,29383.0,29382.0,0.5099]
[1609506620878,16.5687116,29383.0,29382.0,0.5099]
[1609506621181,12.50585988,29383.0,29382.0,0.5099]
[1609506621582,12.42585988,29383.0,29382.0,0.5099]
[1609506622186,1.0,29383.0,29382.0,0.5099]
[1609506622488,0.38260097,29384.0,29382.0,0.873318]
[1609506622678,0.38260097,29384.0,29382.0,0.5099]
[1609506622878,0.38260097,29384.0,29383.0,0.363418]
[1609506623077,0.38240097,29384.0,29383.0,0.363418]
[1609506623377,0.74581897,29384.0,29382.0,0.5099]
[1609506623577,0.38260097,29384.0,29382.0,0.5099]
[1609506625097,2.163418,29383.0,29382.0,0.5099]
[1609506625297,2.688418,29383.0,29382.0,0.5099]
[1609506625496,3.65126972,29383.0,29382.0,0.5099]
[1609506625736,2.86103205,29383.0,29382.0,0.5099]
[1609506626132,2.95272293,29383.0,29382.0,0.5099]
[1609506626334,3.91557465,29383.0,29382.0,0.5099]
[1609506626531,3.99557465,29383.0,29382.0,0.5099]
[1609506627134,1.23272293,29383.0,29382.0,0.5099]
[1609506627336,0.70772293,29383.0,29382.0,0.5099]
[1609506628435,1.45772293,29383.0,29382.0,0.52542783]
[1609506628635,0.70772293,29383.0,29382.0,0.52542783]
[1609506628834,0.77772293,29383.0,29382.0,0.52542783]
[1609506629237,1.74057465,29383.0,29382.0,0.52542783]
[1609506629439,0.77772293,29383.0,29382.0,0.52542783]
[1609506630674,0.17261405,29383.0,29382.0,0.52542783]
[1609506631071,0.25430493,29383.0,29382.0,0.88884583]
[1609506631569,0.25430493,29383.0,29382.0,0.52542783]
[1609506632067,0.61772293,29383.0,29382.0,0.52542783]
[1609506632367,0.75772293,29383.0,29382.0,0.52542783]
[1609506632772,0.30261405,29383.0,29382.0,0.52542783]
[1609506633078,0.30261405,29383.0,29382.0,0.88884583]
[1609506633478,1.70888377,29383.0,29382.0,0.52542783]
[1609506633680,1.80057465,29383.0,29382.0,0.52542783]
[1609506633875,2.32057465,29383.0,29382.0,0.52542783]
[1609506638295,5.42057465,29383.0,29382.0,0.01552783]
[1609506638595,5.45404277,29383.0,29382.0,0.01552783]
[1609506638792,5.78487557,29383.0,29382.0,0.01552783]
[1609506638988,6.11064451,29383.0,29382.0,0.01552783]
[1609506639497,7.22546478,29383.0,29382.0,0.01552783]
[1609506641257,6.89969584,29383.0,29382.0,0.01552783]
[1609506641462,7.22546478,29383.0,29382.0,0.01552783]
[1609506642479,0.96285172,29382.0,29377.0,0.5102]
[1609506642781,4.52979882,29378.0,29377.0,0.5102]
[1609506642977,5.90334155,29378.0,29377.0,0.5102]
[1609506643176,4.94048983,29378.0,29377.0,0.5102]
[1609506643379,5.22516365,29378.0,29377.0,0.5102]
[1609506643780,6.22516365,29378.0,29377.0,0.5102]
[1609506644181,7.18801537,29378.0,29377.0,0.5102]
[1609506644390,7.55230467,29378.0,29374.0,0.5102]
[1609506644592,0.363418,29371.0,29368.0,0.8501]
[1609506644786,3.1,29369.0,29368.0,0.8501]
[1609506644983,4.153418,29369.0,29368.0,0.8501]
[1609506645184,4.47918694,29369.0,29368.0,0.8501]
[1609506645382,4.63975792,29369.0,29364.0,0.8502]
[1609506645583,0.83050389,29368.0,29364.0,0.8502]
[1609506645810,0.32576894,29367.0,29365.0,0.5103]
[1609506646004,1.113418,29366.0,29365.0,0.5103]
[1609506646506,0.69083763,29366.0,29365.0,0.5103]
[1609506648205,0.53397763,29366.0,29365.0,0.5103]
[1609506649006,0.363418,29366.0,29365.0,0.5103]
[1609506649410,0.604058,29366.0,29365.0,0.5103]
[1609506650711,0.77440432,29366.0,29365.0,0.5103]
[1609506651006,0.92940432,29366.0,29365.0,0.5103]
[1609506651335,1.82940432,29366.0,29365.0,0.5103]
[1609506652537,1.659058,29366.0,29365.0,0.5103]
[1609506653537,0.759058,29366.0,29365.0,0.5103]
[1609506654038,0.08,29372.0,29365.0,0.873718]
[1609506654341,0.52363617,29372.0,29366.0,0.37421146]
[1609506654542,0.004123,29369.0,29368.0,2.613418]
[1609506654743,0.00412294,29370.0,29368.0,2.798968]
[1609506654940,0.00412294,29370.0,29369.0,0.363418]
[1609506655449,0.00412297,29371.0,29369.0,0.873518]
[1609506655713,0.00412297,29371.0,29370.0,2.313418]
[1609506655900,0.00412297,29371.0,29370.0,0.363418]
[1609506656999,0.08,29373.0,29370.0,0.363418]
[1609506657205,0.363418,29378.0,29369.0,0.5101]
[1609506657400,0.165,29377.0,29369.0,0.5101]
[1609506657605,0.08,29378.0,29371.0,0.6802]
[1609506658013,0.0802,29382.0,29372.0,0.363418]
[1609506658203,0.32576894,29382.0,29372.0,0.363418]
[1609506658408,0.17033407,29377.0,29372.0,0.363418]
[1609506658806,0.00412419,29374.0,29372.0,0.363418]
[1609506659108,0.00412419,29374.0,29373.0,2.813418]
[1609506659804,0.00412419,29374.0,29373.0,3.343418]
[1609506660104,0.00412465,29375.0,29373.0,3.343418]
[1609506660303,0.00412465,29375.0,29374.0,2.663418]
[1609506660500,0.00412465,29375.0,29374.0,0.363418]
[1609506660999,0.00412465,29375.0,29374.0,0.873518]
[1609506661198,0.00412465,29375.0,29374.0,1.008518]
[1609506662733,0.61436342,29382.0,29374.0,1.008518]
[1609506662933,0.61436342,29382.0,29375.0,0.155]
[1609506663133,0.61436342,29382.0,29378.0,0.68]
[1609506663134,0.17037738,29382.0,29378.0,0.68]
[1609506663337,0.16874387,29381.0,29378.0,0.68]
[1609506663535,0.60933407,29380.0,29378.0,0.68]
[1609506663736,0.16874387,29381.0,29379.0,0.363418]
[1609506663933,0.16874537,29382.0,29379.0,0.363418]
[1609506664330,0.16874537,29382.0,29378.0,0.68]
[1609506664533,1.13159709,29382.0,29378.0,0.68]
[1609506664839,1.188418,29381.0,29379.0,0.01317716]
[1609506665035,1.714169,29380.0,29379.0,0.01317716]
[1609506665437,1.88290383,29380.0,29379.0,0.01317716]
[1609506666234,2.84575555,29380.0,29379.0,0.01317716]
[1609506666435,1.88290383,29380.0,29379.0,0.01317716]
[1609506667033,2.22790383,29380.0,29379.0,0.01317716]
[1609506667635,0.92790383,29380.0,29379.0,0.01317716]
[1609506667937,0.58290383,29380.0,29379.0,0.01317716]
[1609506669950,2.99575555,29380.0,29379.0,0.01317716]
[1609506670147,3.45575555,29380.0,29379.0,0.01317716]
[1609506670348,2.49290383,29380.0,29379.0,0.01317716]
[1609506670748,1.04290383,29380.0,29379.0,0.01317716]
[1609506670951,0.58290383,29380.0,29379.0,0.01317716]
[1609506671449,0.57790383,29380.0,29379.0,0.01317716]
[1609506672853,0.57790383,29380.0,29379.0,1.01317716]
[1609506677379,0.57654288,29380.0,29379.0,1.01317716]
[1609506680079,0.74154288,29380.0,29379.0,1.01317716]
[1609506683207,0.40737388,29380.0,29379.0,1.01317716]
[1609506683411,0.24237388,29380.0,29379.0,1.01317716]
[1609506684714,0.60579188,29380.0,29379.0,1.01317716]
[1609506685161,0.24237388,29380.0,29379.0,1.01317716]
[1609506689689,0.24237388,29380.0,29379.0,1.00317716]
[1609506689986,0.57371248,29380.0,29379.0,1.00317716]
[1609506690189,0.77871248,29380.0,29379.0,1.00317716]
[1609506690587,0.77871248,29380.0,29379.0,1.01078837]
[1609506690821,0.77871248,29380.0,29379.0,1.37420637]
[1609506691019,0.57371248,29380.0,29379.0,1.37420637]
[1609506692021,0.57371248,29380.0,29379.0,1.47420637]
[1609506692224,0.57371248,29380.0,29379.0,1.37420637]
[1609506692721,0.24237388,29380.0,29379.0,1.37420637]
[1609506696323,0.57371378,29380.0,29379.0,1.37420637]
[1609506698442,0.57371378,29380.0,29379.0,1.01078837]
[1609506699850,0.57371378,29380.0,29379.0,1.11078837]
[1609506700151,1.25871378,29380.0,29379.0,1.47420637]
[1609506700350,0.57371378,29380.0,29379.0,1.47420637]
[1609506700655,0.57371378,29380.0,29379.0,1.37420637]
[1609506700932,0.71559191,29380.0,29379.0,1.37420637]
[1609506701740,0.50007473,29380.0,29379.0,1.37420637]
[1609506702337,0.3313399,29380.0,29379.0,1.37420637]
[1609506703237,0.50071151,29380.0,29379.0,1.47420637]
[1609506703737,0.47321803,29380.0,29379.0,1.47420637]
[1609506703938,0.3112475,29380.0,29379.0,1.47420637]
[1609506705441,0.3112475,29380.0,29379.0,1.37420637]
[1609506707864,0.16936937,29380.0,29379.0,1.37420637]
[1609506708264,0.27172505,29380.0,29379.0,1.37420637]
[1609506708668,0.16936937,29380.0,29379.0,1.82420637]
[1609506708965,0.3112475,29380.0,29379.0,1.82420637]
[1609506709169,0.3062475,29380.0,29379.0,2.12420637]
[1609506709370,0.3062475,29380.0,29379.0,1.92420637]
[1609506710667,0.16436937,29380.0,29379.0,1.92420637]
[1609506712399,0.15936937,29380.0,29379.0,1.47420637]
[1609506712594,0.15936937,29380.0,29379.0,1.37420637]
[1609506717700,0.3012475,29380.0,29379.0,1.37420637]
[1609506719502,0.15936937,29380.0,29379.0,1.37420637]
[1609506720940,0.40564937,29380.0,29379.0,1.37420637]
[1609506721133,0.58564937,29380.0,29379.0,1.37420637]
[1609506721334,0.94906737,29380.0,29379.0,1.01078837]
[1609506722931,0.58564937,29380.0,29379.0,1.01078837]
[1609506723532,0.7275275,29380.0,29379.0,1.01078837]
[1609506724670,0.58564937,29380.0,29379.0,1.01078837]
[1609506725149,2.11019491,29380.0,29379.0,1.01078837]
[1609506725346,6.31213823,29380.0,29379.0,1.01078837]
[1609506725740,6.21031387,29380.0,29379.0,1.01078837]
[1609506725946,6.32224645,29380.0,29379.0,1.01078837]
[1609506726144,7.32224645,29380.0,29379.0,1.01078837]
[1609506726873,8.621758,29380.0,29379.0,1.01078837]
[1609506727268,8.7282587,29380.0,29379.0,1.01078837]
[1609506727674,0.96285172,29368.0,29366.0,0.5103]
[1609506727984,0.03541,29365.0,29354.0,0.8504]
[1609506728173,1.2184583,29363.0,29352.0,0.0004]
[1609506728373,0.32576894,29362.0,29345.0,0.2904]
[1609506728584,0.334169,29354.0,29353.0,0.5105]
[1609506728870,0.43705705,29354.0,29353.0,0.5105]
[1609506729273,1.59119005,29354.0,29353.0,0.5105]
[1609506729469,0.75619005,29354.0,29353.0,0.5105]
[1609506729674,0.47835053,29354.0,29353.0,0.5105]
[1609506730170,0.44324675,29354.0,29353.0,0.5105]
[1609506730369,0.47832185,29354.0,29353.0,0.5105]
[1609506731216,0.61832185,29354.0,29353.0,0.5105]
[1609506731818,0.58117885,29354.0,29353.0,0.5105]
[1609506732223,1.63117885,29354.0,29350.0,0.8507]
[1609506732423,0.32,29353.0,29350.0,0.0002]
[1609506732729,1.5,29351.0,29349.0,0.50958]
[1609506732922,0.361408,29350.0,29349.0,0.50958]
[1609506733330,0.07363905,29352.0,29349.0,0.50958]
[1609506733632,0.27335993,29355.0,29350.0,0.363128]
[1609506733633,0.07363905,29354.0,29350.0,0.363128]
[1609506733830,0.07147905,29354.0,29350.0,0.363128]
[1609506734122,0.07147905,29354.0,29350.0,0.521378]
[1609506734322,0.07118905,29354.0,29350.0,0.519398]
[1609506734521,0.07013905,29355.0,29350.0,0.519398]
[1609506734830,0.07013905,29355.0,29351.0,0.15]
[1609506734831,0.06338905,29355.0,29351.0,0.15]
[1609506735033,0.06265905,29355.0,29352.0,0.363528]
[1609506735628,0.06265905,29355.0,29352.0,1.044128]
[1609506735825,0.06050905,29356.0,29352.0,1.044128]
[1609506736048,0.06020905,29356.0,29352.0,1.044128]
[1609506736447,0.02718905,29356.0,29352.0,1.044128]
[1609506736657,0.363502,29355.0,29353.0,0.335]
[1609506736861,2.1,29353.0,29351.0,0.6806]
[1609506737059,0.68927094,29351.0,29346.0,0.8506]
[1609506737260,0.29171894,29350.0,29346.0,0.8506]
[1609506737559,0.307571,29349.0,29346.0,0.8506]
[1609506737954,0.29171894,29348.0,29346.0,0.8506]
[1609506738163,0.07214,29350.0,29347.0,0.363546]
[1609506738360,0.07214,29350.0,29347.0,0.07805923]
[1609506738660,0.07214,29350.0,29346.0,0.8506]
[1609506738862,0.07214,29350.0,29347.0,0.363546]
[1609506739357,0.07214,29350.0,29347.0,0.874146]
[1609506739953,0.38340982,29354.0,29347.0,0.874146]
[1609506740162,0.628546,29353.0,29347.0,0.58865923]
[1609506740462,0.265,29353.0,29348.0,0.363546]
[1609506740761,0.363546,29352.0,29347.0,0.5106]
[1609506741055,0.47365154,29350.0,29347.0,0.5106]
[1609506741257,0.47365154,29350.0,29348.0,0.363546]
[1609506741462,0.363546,29349.0,29347.0,0.5106]
[1609506741679,0.1929,29349.0,29347.0,0.5106]
[1609506742480,0.1929,29349.0,29348.0,0.01080022]
[1609506743079,0.556446,29349.0,29348.0,0.01080022]
[1609506743279,0.721446,29349.0,29348.0,0.01080022]
[1609506743483,1.01316494,29349.0,29348.0,0.01080022]
[1609506745381,1.93510571,29349.0,29348.0,0.01080022]
[1609506745578,1.01316494,29349.0,29348.0,0.01080022]
[1609506746651,1.15504307,29349.0,29348.0,0.01080022]
[1609506747648,1.01316494,29349.0,29348.0,0.01080022]
[1609506747849,1.93510571,29349.0,29348.0,0.01080022]
[1609506748345,2.45510571,29349.0,29348.0,0.01080022]
[1609506748751,2.59698384,29349.0,29348.0,0.01080022]
[1609506749152,3.44698384,29349.0,29348.0,0.01080022]
[1609506749557,1.67710025,29349.0,29348.0,0.01080022]
[1609506749749,1.38538131,29349.0,29348.0,0.01080022]
[1609506750047,2.38538131,29349.0,29348.0,0.01080022]
[1609506750985,2.39361699,29349.0,29348.0,0.01080022]
[1609506751148,1.39361699,29349.0,29348.0,0.01100462]
[1609506751547,1.38949985,29349.0,29348.0,0.01100462]
[1609506751952,1.42449875,29349.0,29348.0,0.01100462]
[1609506752249,3.87449875,29349.0,29348.0,0.01100462]
[1609506752653,4.44167015,29349.0,29348.0,0.01100462]
[1609506752873,4.44167015,29349.0,29348.0,0.01120902]
[1609506753472,4.06752289,29349.0,29348.0,0.01120902]
[1609506754075,2.68290346,29349.0,29348.0,0.01120902]
[1609506754383,2.68290346,29349.0,29348.0,0.08926825]
[1609506754586,1.09826619,29349.0,29348.0,0.08926825]
[1609506754782,1.2220812,29349.0,29348.0,0.45301865]
[1609506754980,0.6927919,29349.0,29348.0,0.44801865]
[1609506755185,0.86069583,29349.0,29348.0,0.44801865]
[1609506755376,1.083107,29349.0,29348.0,0.44801865]
[1609506755582,1.083107,29349.0,29348.0,0.36995942]
[1609506755583,0.7188177,29349.0,29348.0,0.36995942]
[1609506756079,0.7188177,29349.0,29348.0,0.88045942]
[1609506756287,0.86069449,29349.0,29348.0,0.95851865]
[1609506756479,0.86069449,29349.0,29348.0,0.95872305]
[1609506757680,0.86069449,29349.0,29348.0,0.88066382]
[1609506757878,1.12069449,29349.0,29348.0,0.88066382]
[1609506758284,1.22498379,29349.0,29348.0,0.95872305]
[1609506758490,0.86069449,29349.0,29348.0,0.96392729]
[1609506759393,0.86069449,29349.0,29348.0,0.88586806]
[1609506759798,0.86069449,29349.0,29348.0,0.52232206]
[1609506760095,0.86069449,29349.0,29348.0,0.88586806]
[1609506760600,1.49424049,29349.0,29348.0,0.52232206]
[1609506761589,1.82519187,29349.0,29348.0,0.52232206]
[1609506761987,1.82519187,29349.0,29348.0,0.52252646]
[1609506762486,1.82469187,29349.0,29348.0,0.52252646]
[1609506762683,2.18898117,29349.0,29348.0,0.52252646]
[1609506762887,1.91820187,29349.0,29348.0,0.52252646]
[1609506764086,2.80249117,29349.0,29348.0,0.52273086]
[1609506764691,2.28249117,29349.0,29348.0,0.52273086]
[1609506765089,3.20443194,29349.0,29348.0,0.52273086]
[1609506765295,3.72443194,29349.0,29348.0,0.52273086]
[1609506765496,3.39348056,29349.0,29348.0,0.52273086]
[1609506765693,4.39348056,29349.0,29348.0,0.01223086]
[1609506765893,4.05865421,29349.0,29348.0,0.01223086]
[1609506767426,4.05865421,29349.0,29348.0,0.01243526]
[1609506767734,3.53865421,29349.0,29348.0,0.09049449]
[1609506767934,3.44514421,29349.0,29348.0,0.01243526]
[1609506768731,2.44514421,29349.0,29348.0,0.01243526]
[1609506769332,1.85802979,29349.0,29348.0,0.01263966]
[1609506770134,1.79257479,29349.0,29348.0,0.01263966]
[1609506770336,1.49448379,29349.0,29348.0,0.01263966]
[1609506770531,1.13019449,29349.0,29348.0,0.37618566]
[1609506770936,1.13019449,29349.0,29348.0,0.37639006]
[1609506771135,1.49374049,29349.0,29348.0,0.01284406]
[1609506771336,1.85802979,29349.0,29348.0,0.01284406]
[1609506771536,1.49448379,29349.0,29348.0,0.01284406]
[1609506771749,1.13019449,29349.0,29348.0,0.01284406]
[1609506772348,0.9883177,29349.0,29348.0,0.37639006]
[1609506772749,0.9883177,29349.0,29348.0,0.37659446]
[1609506772956,0.9883177,29349.0,29348.0,0.45465369]
[1609506773163,0.7959177,29349.0,29348.0,0.96515369]
[1609506773358,0.890207,29349.0,29348.0,0.96515369]
[1609506773551,0.23419876,29349.0,29348.0,0.96515369]
[1609506774051,0.56546597,29349.0,29348.0,0.96515369]
[1609506774760,0.56546597,29349.0,29348.0,0.96535809]
[1609506776239,0.23419876,29349.0,29348.0,0.96535809]
[1609506776440,0.23419876,29349.0,29348.0,0.96556249]
[1609506776838,0.22919876,29349.0,29348.0,0.96556249]
[1609506777240,0.38419876,29349.0,29348.0,0.96556249]
[1609506777457,0.22919876,29349.0,29348.0,0.96556249]
[1609506777858,0.22919876,29349.0,29348.0,0.88750326]
[1609506778159,0.22919876,29349.0,29348.0,0.88770766]
[1609506783988,0.37107555,29349.0,29348.0,0.88770766]
[1609506786590,0.22919876,29349.0,29348.0,0.88770766]
[1609506788420,0.39919876,29349.0,29348.0,0.88770766]
[1609506788616,0.83279449,29349.0,29348.0,0.88770766]
[1609506788816,0.54107555,29349.0,29348.0,0.88770766]
[1609506789618,0.39919876,29349.0,29348.0,0.88770766]
[1609506791358,0.37107555,29349.0,29348.0,0.88770766]
[1609506792384,0.22919876,29349.0,29348.0,0.88770766]
[1609506792784,0.5209177,29349.0,29348.0,0.52416166]
[1609506793079,0.7409177,29349.0,29348.0,0.52416166]
[1609506793684,1.24634049,29349.0,29348.0,0.52416166]
[1609506794581,1.57756039,29349.0,29348.0,0.52416166]
[1609506794780,1.28584145,29349.0,29348.0,0.52416166]
[1609506794982,0.95462155,29349.0,29348.0,0.52416166]
[1609506795784,0.73462155,29349.0,29348.0,0.52416166]
[1609506797097,0.8844637,29349.0,29348.0,0.52416166]
[1609506798596,1.578753,29349.0,29348.0,0.52416166]
[1609506798797,1.2144637,29349.0,29348.0,0.52416166]
[1609506799096,1.215207,29349.0,29348.0,0.52416166]
[1609506799302,0.8509177,29349.0,29348.0,0.88770766]
[1609506801003,0.55919876,29349.0,29348.0,0.96576689]
[1609506801208,0.02057555,29349.0,29348.0,3.71576689]
[1609506801505,0.14509978,29350.0,29349.0,3.17805923]
[1609506801728,0.29171894,29355.0,29350.0,0.363546]
[1609506801927,4.0,29354.0,29351.0,0.135]
[1609506802126,0.2193,29356.0,29352.0,0.874046]
[1609506802327,1.0,29355.0,29354.0,1.763546]
[1609506802529,0.2193,29356.0,29354.0,0.363546]
[1609506802833,0.2193,29356.0,29354.0,0.68118523]
[1609506803625,0.2193,29356.0,29355.0,2.04160523]
[1609506803832,0.2193,29356.0,29355.0,2.12160523]
[1609506804030,0.2193,29356.0,29355.0,2.55160523]
[1609506805436,0.2193,29356.0,29355.0,5.95160523]
[1609506805633,0.2958,29361.0,29356.0,4.08636835]
[1609506805939,0.03541,29365.0,29360.0,0.363546]
[1609506806209,0.03541,29365.0,29360.0,0.68363523]
[1609506806508,0.03541,29365.0,29360.0,0.605576]
[1609506807111,0.03541,29365.0,29362.0,0.5103]
[1609506807422,0.32712894,29365.0,29363.0,0.363546]
[1609506808123,0.03541,29365.0,29363.0,0.363546]
[1609506810012,0.03541,29365.0,29362.0,0.5103]
[1609506810415,0.03541,29365.0,29363.0,0.363546]
[1609506810613,0.19,29364.0,29363.0,0.363546]
[1609506810814,0.03541,29365.0,29363.0,0.363546]
[1609506811246,0.03541,29365.0,29363.0,0.37474959]
[1609506811854,0.03541,29365.0,29363.0,0.55256959]
[1609506813653,0.03541,29365.0,29364.0,2.53]
[1609506813853,0.03541,29365.0,29364.0,2.893546]
[1609506814057,0.03541,29365.0,29364.0,3.28660523]
[1609506815459,0.2193,29366.0,29365.0,3.49160523]
[1609506815656,0.57053623,29368.0,29367.0,3.113546]
[1609506815958,0.57053623,29368.0,29367.0,1.04160523]
[1609506816151,0.57053623,29368.0,29367.0,0.44160523]
[1609506816355,0.79834044,29368.0,29367.0,0.44160523]
[1609506816777,0.79834044,29368.0,29367.0,0.53277812]
[1609506817075,0.79834044,29368.0,29367.0,1.04287812]
[1609506817277,0.92214434,29368.0,29367.0,1.40287812]
[1609506817679,0.22780421,29368.0,29367.0,1.40287812]
[1609506818780,4.14152999,29369.0,29368.0,4.67805923]
[1609506819081,3.46162999,29369.0,29368.0,6.04160523]
[1609506819378,3.42034486,29369.0,29368.0,6.04160523]
[1609506819578,3.38527113,29369.0,29368.0,6.04160523]
[1609506819775,3.38527113,29369.0,29368.0,6.12160523]
[1609506820184,3.37908759,29369.0,29368.0,6.12160523]
[1609506820382,3.34404542,29369.0,29368.0,1.52160523]
[1609506820580,3.34404542,29369.0,29368.0,0.443546]
[1609506821226,3.34404542,29369.0,29368.0,1.693546]
[1609506821626,0.00618142,29369.0,29368.0,1.693546]
[1609506821830,0.00411974,29369.0,29368.0,1.77160523]
[1609506822033,0.00411974,29369.0,29368.0,2.21660523]
[1609506822237,0.04119744,29371.0,29369.0,0.07805923]
[1609506822443,0.04119744,29371.0,29370.0,0.44160523]
[1609506822444,7.44e-06,29371.0,29370.0,0.44160523]
[1609506822639,0.08239488,29374.0,29373.0,5.22805923]
[1609506822838,0.08239488,29374.0,29373.0,5.59160523]
[1609506823038,0.2193,29376.0,29374.0,4.57805923]
[1609506823239,0.2193,29376.0,29373.0,0.363546]
[1609506823240,0.2193,29376.0,29375.0,5.24160523]
[1609506823442,0.2193,29376.0,29375.0,6.19256523]
[1609506823838,0.2193,29376.0,29375.0,1.39256523]
[1609506824140,0.2193,29376.0,29375.0,0.59756523]
[1609506824336,0.2193,29376.0,29375.0,1.81600425]
[1609506824633,0.2193,29376.0,29375.0,2.17933625]
[1609506826265,0.2193,29376.0,29375.0,3.62933625]
[1609506826862,0.2193,29376.0,29375.0,3.87143625]
[1609506827265,0.0004,29379.0,29375.0,5.37143625]
[1609506827465,0.0004,29379.0,29377.0,3.651914]
[1609506827770,0.0004,29379.0,29377.0,4.651914]
[1609506828265,0.0004,29379.0,29377.0,5.651914]
[1609506828868,0.11968613,29384.0,29378.0,5.05]
[1609506829071,0.67268974,29385.0,29379.0,0.36328]
[1609506829267,0.96440868,29385.0,29380.0,0.43]
[1609506829471,0.29171894,29384.0,29381.0,0.351857]
[1609506829768,0.12425246,29385.0,29383.0,0.363227]
[1609506830168,0.00077626,29385.0,29383.0,0.363227]
[1609506830978,0.00037626,29385.0,29384.0,5.501819]
[1609506831175,0.00037626,29385.0,29384.0,6.376819]
[1609506831379,0.0004,29386.0,29385.0,5.15]
[1609506831569,0.0002,29386.0,29385.0,6.5132]
[1609506831797,0.3217,29387.0,29386.0,5.501792]
[1609506832096,0.3215,29387.0,29386.0,1.346792]
[1609506832297,0.0006,29388.0,29387.0,5.15]
[1609506832298,0.0008,29388.0,29387.0,5.15]
[1609506832492,0.0008,29388.0,29387.0,5.513174]
[1609506832893,0.0006,29388.0,29387.0,6.338174]
[1609506833201,0.0006,29388.0,29387.0,6.34919321]